[Event "Late-Titled-Tuesday-Blitz-June-18-2024"]
[Site "Chess.com"]
[Date "2024.06.18"]
[Round "8"]
[White "katharinareinecke"]
[Black "aranibos"]
[Result "0-1"]
[WhiteElo "2045"]
[BlackElo "2260"]
[TimeControl "180+1"]
[EndTime "15:28:08 PDT"]
[Termination "aranibos won by resignation"]

1. d4 {[%clk 0:03:00.9]} 1... d5 {[%clk 0:02:58.3]} 2. c4 {[%clk 0:02:59.7]}
2... c6 {[%clk 0:02:57.8]} 3. Nf3 {[%clk 0:02:59.7]} 3... Nf6 {[%clk 0:02:58.1]}
4. g3 {[%clk 0:02:57.6]} 4... e6 {[%clk 0:02:55.6]} 5. Bg2 {[%clk 0:02:57.8]}
5... Nbd7 {[%clk 0:02:55.3]} 6. O-O {[%clk 0:02:58.2]} 6... dxc4 {[%clk
0:02:53.6]} 7. Ne5 {[%clk 0:02:54.3]} 7... Nxe5 {[%clk 0:02:47.9]} 8. dxe5
{[%clk 0:02:55.2]} 8... Qxd1 {[%clk 0:02:47.8]} 9. Rxd1 {[%clk 0:02:53.6]} 9...
Ng4 {[%clk 0:02:38.2]} 10. Bf4 {[%clk 0:02:21.8]} 10... Bc5 {[%clk 0:02:28]} 11.
e3 {[%clk 0:02:16.8]} 11... Bd7 {[%clk 0:02:15.4]} 12. h3 {[%clk 0:02:14.8]}
12... Nh6 {[%clk 0:02:14]} 13. Bxh6 {[%clk 0:02:15]} 13... gxh6 {[%clk
0:02:12.8]} 14. Nc3 {[%clk 0:02:14.2]} 14... O-O-O {[%clk 0:02:11.4]} 15. Ne4
{[%clk 0:02:12.2]} 15... Be7 {[%clk 0:02:11.4]} 16. Nd6+ {[%clk 0:02:08.8]}
16... Bxd6 {[%clk 0:02:10.4]} 17. Rxd6 {[%clk 0:02:05.6]} 17... Be8 {[%clk
0:02:05]} 18. Rad1 {[%clk 0:02:03.6]} 18... Rxd6 {[%clk 0:02:04.5]} 19. Rxd6
{[%clk 0:02:00.1]} 19... Kc7 {[%clk 0:02:02.3]} 20. f4 {[%clk 0:01:45.7]} 20...
Bd7 {[%clk 0:01:54.8]} 21. Rd4 {[%clk 0:01:27.2]} 21... b5 {[%clk 0:01:54]} 22.
Be4 {[%clk 0:01:21.9]} 22... a5 {[%clk 0:01:39.6]} 23. Kf2 {[%clk 0:01:20.8]}
23... a4 {[%clk 0:01:39.2]} 24. a3 {[%clk 0:01:19.3]} 24... Rd8 {[%clk
0:01:34.2]} 25. Bxh7 {[%clk 0:01:18.1]} 25... Be8 {[%clk 0:01:34.3]} 26. g4
{[%clk 0:01:06.3]} 26... c5 {[%clk 0:01:26.8]} 27. Rxd8 {[%clk 0:01:00.9]} 27...
Kxd8 {[%clk 0:01:27.2]} 28. h4 {[%clk 0:00:49.6]} 28... b4 {[%clk 0:01:26.2]}
29. Ke2 {[%clk 0:00:44.1]} 29... c3 {[%clk 0:01:18.7]} 30. bxc3 {[%clk
0:00:41.9]} 30... bxa3 {[%clk 0:01:16.4]} 31. Bb1 {[%clk 0:00:41.1]} 31... Bb5+
{[%clk 0:01:14.7]} 32. Kd2 {[%clk 0:00:35.3]} 32... Bc4 {[%clk 0:01:15]} 33. h5
{[%clk 0:00:34.4]} 33... Ke7 {[%clk 0:01:14.3]} 34. g5 {[%clk 0:00:32.7]} 34...
hxg5 {[%clk 0:01:13.8]} 35. fxg5 {[%clk 0:00:32.6]} 35... Kf8 {[%clk 0:01:12.5]}
36. h6 {[%clk 0:00:29.3]} 36... a2 {[%clk 0:01:10.9]} 37. h7 {[%clk 0:00:28.5]}
37... Kg7 {[%clk 0:01:10.3]} 38. Bxa2 {[%clk 0:00:19.9]} 38... Bxa2 {[%clk
0:01:09.8]} 39. Kc2 {[%clk 0:00:19]} 39... Kxh7 {[%clk 0:01:05.4]} 40. Kb2
{[%clk 0:00:18.9]} 40... Bb3 {[%clk 0:01:03.5]} 41. Ka3 {[%clk 0:00:18.5]} 41...
Kg6 {[%clk 0:01:04]} 0-1

[Event "Late-Titled-Tuesday-Blitz-June-18-2024"]
[Site "Chess.com"]
[Date "2024.06.18"]
[Round "8"]
[White "farzadbfd"]
[Black "legendisback1"]
[Result "0-1"]
[WhiteElo "2701"]
[BlackElo "2999"]
[TimeControl "180+1"]
[EndTime "15:28:09 PDT"]
[Termination "legendisback1 won on time"]

1. e4 {[%clk 0:03:00.9]} 1... a6 {[%clk 0:02:56.8]} 2. Nc3 {[%clk 0:03:00.2]}
2... e6 {[%clk 0:02:57.7]} 3. g3 {[%clk 0:02:59.7]} 3... b5 {[%clk 0:02:57.5]}
4. Bg2 {[%clk 0:02:59.9]} 4... Bb7 {[%clk 0:02:57.2]} 5. Nge2 {[%clk 0:02:59.6]}
5... b4 {[%clk 0:02:56.4]} 6. Nb1 {[%clk 0:02:59.5]} 6... Nf6 {[%clk 0:02:52.9]}
7. d3 {[%clk 0:02:59]} 7... d5 {[%clk 0:02:51.8]} 8. e5 {[%clk 0:02:58.6]} 8...
Nfd7 {[%clk 0:02:46.7]} 9. f4 {[%clk 0:02:58.7]} 9... c5 {[%clk 0:02:46.7]} 10.
O-O {[%clk 0:02:58.3]} 10... Nc6 {[%clk 0:02:47.3]} 11. Be3 {[%clk 0:02:56.5]}
11... Be7 {[%clk 0:02:06.1]} 12. d4 {[%clk 0:02:54.1]} 12... O-O {[%clk
0:02:05.1]} 13. Nd2 {[%clk 0:02:52.4]} 13... a5 {[%clk 0:02:00.6]} 14. Nb3
{[%clk 0:02:46.4]} 14... a4 {[%clk 0:01:55.8]} 15. Nxc5 {[%clk 0:02:46.4]} 15...
Nxc5 {[%clk 0:01:56.3]} 16. dxc5 {[%clk 0:02:46.5]} 16... a3 {[%clk 0:01:54.4]}
17. b3 {[%clk 0:02:44.9]} 17... Qa5 {[%clk 0:01:53.9]} 18. Qd2 {[%clk
0:01:45.8]} 18... Bxc5 {[%clk 0:01:52.8]} 19. Rfc1 {[%clk 0:01:45.6]} 19... Ba6
{[%clk 0:01:51.7]} 20. Nd4 {[%clk 0:01:43]} 20... Rac8 {[%clk 0:01:50.9]} 21.
Nf3 {[%clk 0:01:02.3]} 21... Ne7 {[%clk 0:01:48.3]} 22. Bf1 {[%clk 0:00:30.5]}
22... Nf5 {[%clk 0:01:44]} 23. Bxc5 {[%clk 0:00:29.2]} 23... Qxc5+ {[%clk
0:01:44.9]} 24. Qf2 {[%clk 0:00:26.7]} 24... Bxf1 {[%clk 0:01:39.1]} 25. Rxf1
{[%clk 0:00:23.7]} 25... Qxc2 {[%clk 0:01:33.7]} 26. Qxc2 {[%clk 0:00:12.6]}
26... Rxc2 {[%clk 0:01:34.6]} 27. Rf2 {[%clk 0:00:13.2]} 27... Rfc8 {[%clk
0:01:33.6]} 28. Ne1 {[%clk 0:00:10.9]} 28... Rc1 {[%clk 0:01:32.3]} 29. Rxc1
{[%clk 0:00:10.7]} 29... Rxc1 {[%clk 0:01:33.2]} 30. Rc2 {[%clk 0:00:10.5]}
30... Rxe1+ {[%clk 0:01:03.7]} 31. Kf2 {[%clk 0:00:10.1]} 31... Rf1+ {[%clk
0:01:03.8]} 0-1

[Event "Late-Titled-Tuesday-Blitz-June-18-2024"]
[Site "Chess.com"]
[Date "2024.06.18"]
[Round "8"]
[White "Viktor_Poddubnyi"]
[Black "campochess"]
[Result "1-0"]
[WhiteElo "2341"]
[BlackElo "2188"]
[TimeControl "180+1"]
[EndTime "15:28:12 PDT"]
[Termination "Viktor_Poddubnyi won by resignation"]

1. e4 {[%clk 0:03:00.5]} 1... c5 {[%clk 0:02:59.8]} 2. Nf3 {[%clk 0:03:00.2]}
2... Nc6 {[%clk 0:02:59.8]} 3. d4 {[%clk 0:03:00.4]} 3... cxd4 {[%clk 0:03:00]}
4. Nxd4 {[%clk 0:03:01.3]} 4... e5 {[%clk 0:03:00]} 5. Nb5 {[%clk 0:03:00.9]}
5... a6 {[%clk 0:03:00.3]} 6. Nd6+ {[%clk 0:03:00.7]} 6... Bxd6 {[%clk
0:03:00.4]} 7. Qxd6 {[%clk 0:03:01.1]} 7... Qe7 {[%clk 0:03:00.6]} 8. Qd1 {[%clk
0:02:57.2]} 8... Nf6 {[%clk 0:03:00.5]} 9. Nc3 {[%clk 0:02:56.3]} 9... d6 {[%clk
0:03:00.7]} 10. Bc4 {[%clk 0:02:40.4]} 10... Be6 {[%clk 0:03:00.2]} 11. Bb3
{[%clk 0:02:38.7]} 11... Rd8 {[%clk 0:02:58.8]} 12. Bg5 {[%clk 0:02:36.9]} 12...
h6 {[%clk 0:02:54.9]} 13. Bxf6 {[%clk 0:02:33.6]} 13... Qxf6 {[%clk 0:02:54.2]}
14. O-O {[%clk 0:02:25.8]} 14... O-O {[%clk 0:02:53.2]} 15. Nd5 {[%clk
0:02:20.1]} 15... Bxd5 {[%clk 0:02:51.2]} 16. Bxd5 {[%clk 0:02:20.3]} 16... Rd7
{[%clk 0:02:48.1]} 17. Qe2 {[%clk 0:01:38.3]} 17... Rfd8 {[%clk 0:02:47.6]} 18.
Bxc6 {[%clk 0:01:32]} 18... bxc6 {[%clk 0:02:46.4]} 19. Qxa6 {[%clk 0:01:31.2]}
19... d5 {[%clk 0:02:41.7]} 20. exd5 {[%clk 0:01:06.1]} 20... Rxd5 {[%clk
0:02:41.6]} 21. a4 {[%clk 0:01:03.1]} 21... e4 {[%clk 0:02:41.3]} 22. a5 {[%clk
0:00:55.6]} 22... Qg6 {[%clk 0:02:29]} 23. Qc4 {[%clk 0:00:38.3]} 23... Rg5
{[%clk 0:02:21.7]} 24. g3 {[%clk 0:00:36.3]} 24... Rd2 {[%clk 0:02:08.7]} 25. a6
{[%clk 0:00:20.2]} 25... e3 {[%clk 0:02:08.3]} 26. a7 {[%clk 0:00:09.2]} 26...
exf2+ {[%clk 0:02:02.4]} 27. Kh1 {[%clk 0:00:09.2]} 27... Rxc2 {[%clk
0:01:51.1]} 28. a8=Q+ {[%clk 0:00:06.7]} 28... Kh7 {[%clk 0:01:51.2]} 29. Qf4
{[%clk 0:00:06.4]} 29... Rf5 {[%clk 0:01:45.3]} 30. Qe4 {[%clk 0:00:04.9]} 30...
Rxb2 {[%clk 0:01:44.9]} 31. Qaxc6 {[%clk 0:00:03.9]} 31... f6 {[%clk 0:01:38.1]}
32. Qce6 {[%clk 0:00:04.2]} 32... Re5 {[%clk 0:01:23.1]} 33. Qxg6+ {[%clk
0:00:03.8]} 33... Kxg6 {[%clk 0:01:23.2]} 34. Qg4+ {[%clk 0:00:04.3]} 34... Kh7
{[%clk 0:01:18.7]} 35. Qd4 {[%clk 0:00:03.7]} 35... Rbe2 {[%clk 0:01:17]} 36.
Rxf2 {[%clk 0:00:02.2]} 1-0

[Event "Late-Titled-Tuesday-Blitz-June-18-2024"]
[Site "Chess.com"]
[Date "2024.06.18"]
[Round "8"]
[White "AldokhinIvan"]
[Black "SchmakAttack"]
[Result "0-1"]
[WhiteElo "2660"]
[BlackElo "2831"]
[TimeControl "180+1"]
[EndTime "15:28:13 PDT"]
[Termination "SchmakAttack won on time"]

1. e4 {[%clk 0:03:00.9]} 1... d5 {[%clk 0:03:00]} 2. exd5 {[%clk 0:03:00.4]}
2... Qxd5 {[%clk 0:03:00.9]} 3. Nc3 {[%clk 0:03:00.5]} 3... Qd6 {[%clk
0:03:01.6]} 4. Nf3 {[%clk 0:03:00.3]} 4... Nf6 {[%clk 0:03:00.9]} 5. d4 {[%clk
0:03:00.6]} 5... g6 {[%clk 0:03:01]} 6. g3 {[%clk 0:03:01]} 6... Bg4 {[%clk
0:02:48.2]} 7. Bg2 {[%clk 0:02:55.7]} 7... Nc6 {[%clk 0:02:47.9]} 8. Bf4 {[%clk
0:02:54.2]} 8... Qe6+ {[%clk 0:02:46.9]} 9. Be3 {[%clk 0:02:29.5]} 9... O-O-O
{[%clk 0:02:43.5]} 10. h3 {[%clk 0:02:24.5]} 10... Bxf3 {[%clk 0:02:11.2]} 11.
Qxf3 {[%clk 0:02:25.4]} 11... Rxd4 {[%clk 0:02:09.8]} 12. Nb5 {[%clk 0:02:03.9]}
12... Rb4 {[%clk 0:02:06.6]} 13. Nc3 {[%clk 0:01:34]} 13... Bh6 {[%clk 0:01:58]}
14. O-O-O {[%clk 0:01:24.7]} 14... Bxe3+ {[%clk 0:01:57.6]} 15. fxe3 {[%clk
0:01:25.6]} 15... Ne5 {[%clk 0:01:56.7]} 16. Qe2 {[%clk 0:01:04.3]} 16... Qb6
{[%clk 0:01:43.5]} 17. b3 {[%clk 0:00:52]} 17... Qa5 {[%clk 0:01:42.5]} 18. Rd4
{[%clk 0:00:34.7]} 18... Rxd4 {[%clk 0:01:25.5]} 19. exd4 {[%clk 0:00:34.6]}
19... Qxc3 {[%clk 0:01:26.1]} 20. Qxe5 {[%clk 0:00:22.7]} 20... Rd8 {[%clk
0:01:20.8]} 21. Kb1 {[%clk 0:00:13.5]} 21... Qd2 {[%clk 0:01:03.8]} 22. Bf3
{[%clk 0:00:04.2]} 22... Qf2 {[%clk 0:00:45.6]} 23. Bg4+ {[%clk 0:00:04.3]}
23... e6 {[%clk 0:00:46.3]} 24. Qf4 {[%clk 0:00:01.3]} 24... Qxf4 {[%clk
0:00:43.9]} 25. gxf4 {[%clk 0:00:02.2]} 25... Rxd4 {[%clk 0:00:44.6]} 0-1

[Event "Late-Titled-Tuesday-Blitz-June-18-2024"]
[Site "Chess.com"]
[Date "2024.06.18"]
[Round "8"]
[White "sergiochess83"]
[Black "azikom"]
[Result "0-1"]
[WhiteElo "2850"]
[BlackElo "2707"]
[TimeControl "180+1"]
[EndTime "15:28:22 PDT"]
[Termination "azikom won on time"]

1. e4 {[%clk 0:03:00.9]} 1... c6 {[%clk 0:02:58.1]} 2. d4 {[%clk 0:02:59.8]}
2... d5 {[%clk 0:02:56.2]} 3. Nc3 {[%clk 0:03:00.7]} 3... dxe4 {[%clk
0:02:55.6]} 4. Nxe4 {[%clk 0:03:01.6]} 4... Bf5 {[%clk 0:02:55.4]} 5. Ng3 {[%clk
0:03:00.9]} 5... Bg6 {[%clk 0:02:53.9]} 6. h4 {[%clk 0:02:59.7]} 6... h6 {[%clk
0:02:53.2]} 7. Bd3 {[%clk 0:03:00.1]} 7... Bxd3 {[%clk 0:02:52.3]} 8. Qxd3
{[%clk 0:03:01]} 8... e6 {[%clk 0:02:52.6]} 9. N1e2 {[%clk 0:03:00.6]} 9... Nf6
{[%clk 0:02:53.1]} 10. Bd2 {[%clk 0:03:00.7]} 10... c5 {[%clk 0:02:52.8]} 11.
O-O-O {[%clk 0:02:26.4]} 11... Nc6 {[%clk 0:02:52.5]} 12. Qb5 {[%clk 0:02:26.5]}
12... Qb6 {[%clk 0:02:52.2]} 13. Qa4 {[%clk 0:01:23.3]} 13... cxd4 {[%clk
0:02:51.5]} 14. Nf4 {[%clk 0:01:09.2]} 14... O-O-O {[%clk 0:02:47.9]} 15. Rhe1
{[%clk 0:01:07.5]} 15... Kb8 {[%clk 0:02:45.4]} 16. Nd3 {[%clk 0:01:05.8]} 16...
Rc8 {[%clk 0:02:38.7]} 17. Ne4 {[%clk 0:00:57.2]} 17... Be7 {[%clk 0:02:27.1]}
18. Bf4+ {[%clk 0:00:39.7]} 18... Ka8 {[%clk 0:02:26.4]} 19. Nd6 {[%clk
0:00:40.3]} 19... Bxd6 {[%clk 0:02:25.4]} 20. Bxd6 {[%clk 0:00:41.2]} 20... Rhd8
{[%clk 0:02:08.5]} 21. Bc5 {[%clk 0:00:41.3]} 21... Qc7 {[%clk 0:02:08.5]} 22.
Ne5 {[%clk 0:00:42]} 22... b5 {[%clk 0:01:47.4]} 23. Qa6 {[%clk 0:00:22.4]}
23... Nb4 {[%clk 0:01:28.1]} 24. Qxb5 {[%clk 0:00:03.2]} 24... Qxc5 {[%clk
0:01:27.1]} 25. Qxc5 {[%clk 0:00:03.7]} 25... Rxc5 {[%clk 0:01:27.6]} 26. c3
{[%clk 0:00:04.6]} 26... Nc6 {[%clk 0:01:14]} 27. Nxf7 {[%clk 0:00:04.8]} 27...
Rb8 {[%clk 0:01:11.6]} 28. Rxe6 {[%clk 0:00:02.6]} 28... dxc3 {[%clk 0:01:09.3]}
29. b3 {[%clk 0:00:03.2]} 29... Nb4 {[%clk 0:01:03.2]} 30. a3 {[%clk 0:00:03.7]}
30... c2 {[%clk 0:00:47.2]} 0-1

[Event "Late-Titled-Tuesday-Blitz-June-18-2024"]
[Site "Chess.com"]
[Date "2024.06.18"]
[Round "8"]
[White "lluiss"]
[Black "jup1978"]
[Result "0-1"]
[WhiteElo "2259"]
[BlackElo "2439"]
[TimeControl "180+1"]
[EndTime "15:28:22 PDT"]
[Termination "jup1978 won on time"]

1. Nf3 {[%clk 0:03:00.9]} 1... d5 {[%clk 0:02:55.3]} 2. d4 {[%clk 0:03:00.5]}
2... e6 {[%clk 0:02:53.3]} 3. c4 {[%clk 0:03:01]} 3... Nf6 {[%clk 0:02:50.6]} 4.
cxd5 {[%clk 0:03:01.9]} 4... exd5 {[%clk 0:02:50.2]} 5. Nc3 {[%clk 0:03:02.8]}
5... a6 {[%clk 0:02:50.1]} 6. Bg5 {[%clk 0:03:00.9]} 6... Be6 {[%clk 0:02:44.3]}
7. e3 {[%clk 0:03:00.4]} 7... Bd6 {[%clk 0:02:43.5]} 8. Bd3 {[%clk 0:02:59.9]}
8... Nbd7 {[%clk 0:02:43.5]} 9. Qc2 {[%clk 0:03:00]} 9... h6 {[%clk 0:02:41.6]}
10. Bh4 {[%clk 0:02:58.9]} 10... Qe7 {[%clk 0:02:41.8]} 11. O-O {[%clk
0:02:58.3]} 11... O-O-O {[%clk 0:02:41.9]} 12. b4 {[%clk 0:02:53]} 12... g5
{[%clk 0:02:41.7]} 13. Bg3 {[%clk 0:02:52.5]} 13... h5 {[%clk 0:02:36.7]} 14. b5
{[%clk 0:02:50.7]} 14... a5 {[%clk 0:02:36.4]} 15. b6 {[%clk 0:02:45.2]} 15...
Nxb6 {[%clk 0:02:35.9]} 16. Nb5 {[%clk 0:02:44.4]} 16... Bxg3 {[%clk 0:02:32.5]}
17. fxg3 {[%clk 0:02:37.5]} 17... c6 {[%clk 0:02:28.7]} 18. Na7+ {[%clk
0:02:33.1]} 18... Kb8 {[%clk 0:02:28.6]} 19. Nxc6+ {[%clk 0:02:32]} 19... bxc6
{[%clk 0:02:29.5]} 20. Qxc6 {[%clk 0:02:32]} 20... Qb7 {[%clk 0:02:24.6]} 21.
Qc2 {[%clk 0:02:27.2]} 21... Rc8 {[%clk 0:02:22.3]} 22. Qe2 {[%clk 0:02:27.2]}
22... Ka7 {[%clk 0:02:21.1]} 23. Rfb1 {[%clk 0:02:26.9]} 23... Qc6 {[%clk
0:02:18.2]} 24. Rb5 {[%clk 0:02:22.7]} 24... Nc4 {[%clk 0:02:10.4]} 25. Rab1
{[%clk 0:02:10.4]} 25... Qa6 {[%clk 0:02:01]} 26. Ne5 {[%clk 0:02:09.4]} 26...
Rb8 {[%clk 0:01:57.6]} 27. Nxc4 {[%clk 0:02:01.2]} 27... Rxb5 {[%clk 0:01:57]}
28. Rxb5 {[%clk 0:01:33.6]} 28... Qxb5 {[%clk 0:01:56.1]} 29. Ne5 {[%clk
0:01:23.6]} 29... Qb6 {[%clk 0:01:48.9]} 30. h3 {[%clk 0:01:13.6]} 30... g4
{[%clk 0:01:45.2]} 31. h4 {[%clk 0:01:12.4]} 31... Rc8 {[%clk 0:01:43.7]} 32.
Qd2 {[%clk 0:00:40.6]} 32... Qb4 {[%clk 0:01:42.3]} 33. Qf2 {[%clk 0:00:38.3]}
33... Ne4 {[%clk 0:01:37.5]} 34. Bxe4 {[%clk 0:00:28.4]} 34... dxe4 {[%clk
0:01:38.4]} 35. Qf6 {[%clk 0:00:29.3]} 35... Rc7 {[%clk 0:01:23.1]} 36. Qd8
{[%clk 0:00:28.4]} 36... Qb8 {[%clk 0:01:18.2]} 37. Qf6 {[%clk 0:00:05.2]} 37...
Qb1+ {[%clk 0:01:11.8]} 38. Kh2 {[%clk 0:00:02.8]} 38... Qxa2 {[%clk 0:01:12.1]}
39. Qd8 {[%clk 0:00:02.2]} 39... Kb7 {[%clk 0:01:09.2]} 40. Qd6 {[%clk
0:00:01.2]} 40... Qd5 {[%clk 0:01:06.3]} 0-1

[Event "Late-Titled-Tuesday-Blitz-June-18-2024"]
[Site "Chess.com"]
[Date "2024.06.18"]
[Round "8"]
[White "maximnovik"]
[Black "RichardShtivelband"]
[Result "1-0"]
[WhiteElo "2565"]
[BlackElo "2387"]
[TimeControl "180+1"]
[EndTime "15:28:28 PDT"]
[Termination "maximnovik won by resignation"]

1. e4 {[%clk 0:03:00]} 1... e5 {[%clk 0:02:58.8]} 2. Nf3 {[%clk 0:02:59.9]} 2...
Nc6 {[%clk 0:02:59]} 3. Bc4 {[%clk 0:03:00.5]} 3... h6 {[%clk 0:02:58]} 4. d3
{[%clk 0:03:00.2]} 4... Bc5 {[%clk 0:02:50.7]} 5. O-O {[%clk 0:03:00.2]} 5...
Qf6 {[%clk 0:02:46.8]} 6. c3 {[%clk 0:03:00]} 6... Bb6 {[%clk 0:02:44.1]} 7. a4
{[%clk 0:02:58.6]} 7... d6 {[%clk 0:02:42.4]} 8. b4 {[%clk 0:02:58.2]} 8... a5
{[%clk 0:02:39.1]} 9. b5 {[%clk 0:02:56.7]} 9... Nce7 {[%clk 0:02:38.7]} 10. Be3
{[%clk 0:02:56.6]} 10... Ng6 {[%clk 0:02:31]} 11. Nbd2 {[%clk 0:02:55.6]} 11...
N8e7 {[%clk 0:02:24]} 12. Bb3 {[%clk 0:02:46.6]} 12... Bc5 {[%clk 0:02:01.5]}
13. d4 {[%clk 0:02:42.3]} 13... Ba7 {[%clk 0:02:01.5]} 14. Nc4 {[%clk
0:02:39.3]} 14... b6 {[%clk 0:01:48.8]} 15. h3 {[%clk 0:02:05]} 15... O-O {[%clk
0:01:45.4]} 16. Nh2 {[%clk 0:02:03.7]} 16... Nf4 {[%clk 0:01:40.9]} 17. Ng4
{[%clk 0:01:58.1]} 17... Qg5 {[%clk 0:01:38.3]} 18. Qf3 {[%clk 0:01:53.3]} 18...
Neg6 {[%clk 0:01:30.4]} 19. dxe5 {[%clk 0:01:44.5]} 19... h5 {[%clk 0:00:57.6]}
20. g3 {[%clk 0:01:04.9]} 20... Nxh3+ {[%clk 0:00:55.5]} 21. Kh2 {[%clk
0:00:56.3]} 21... Qxg4 {[%clk 0:00:55]} 22. Qxg4 {[%clk 0:00:55.3]} 22... hxg4
{[%clk 0:00:54.8]} 23. exd6 {[%clk 0:00:54.5]} 23... Be6 {[%clk 0:00:51.2]} 24.
dxc7 {[%clk 0:00:43.8]} 24... Rac8 {[%clk 0:00:49.8]} 25. Nxb6 {[%clk
0:00:37.9]} 25... Bxb3 {[%clk 0:00:47.4]} 26. Nxc8 {[%clk 0:00:35.4]} 26... Bxe3
{[%clk 0:00:47]} 27. fxe3 {[%clk 0:00:30]} 27... Rxc8 {[%clk 0:00:43.1]} 28. b6
{[%clk 0:00:30.1]} 28... Ne5 {[%clk 0:00:18.4]} 29. b7 {[%clk 0:00:29]} 1-0

[Event "Late-Titled-Tuesday-Blitz-June-18-2024"]
[Site "Chess.com"]
[Date "2024.06.18"]
[Round "8"]
[White "Chopper1905"]
[Black "GoltsevDmitry2000"]
[Result "0-1"]
[WhiteElo "2903"]
[BlackElo "2733"]
[TimeControl "180+1"]
[EndTime "15:28:29 PDT"]
[Termination "GoltsevDmitry2000 won on time"]

1. d4 {[%clk 0:02:51.8]} 1... e6 {[%clk 0:02:58.8]} 2. e4 {[%clk 0:02:37.7]}
2... d5 {[%clk 0:02:57.9]} 3. Nc3 {[%clk 0:02:38.2]} 3... c5 {[%clk 0:02:57.6]}
4. Nf3 {[%clk 0:02:35.5]} 4... Nf6 {[%clk 0:02:57]} 5. Bb5+ {[%clk 0:02:32.5]}
5... Nc6 {[%clk 0:02:56.9]} 6. exd5 {[%clk 0:02:31.3]} 6... exd5 {[%clk
0:02:57.8]} 7. O-O {[%clk 0:02:31.4]} 7... Be7 {[%clk 0:02:57.6]} 8. dxc5 {[%clk
0:02:31.2]} 8... Bxc5 {[%clk 0:02:58.5]} 9. Re1+ {[%clk 0:02:30.4]} 9... Be6
{[%clk 0:02:58.5]} 10. Na4 {[%clk 0:02:07]} 10... Bd6 {[%clk 0:02:44.6]} 11. Nd4
{[%clk 0:02:03.7]} 11... O-O {[%clk 0:02:44.3]} 12. Bg5 {[%clk 0:01:25.5]} 12...
Bd7 {[%clk 0:02:26.3]} 13. Nc3 {[%clk 0:01:22.3]} 13... h6 {[%clk 0:02:03.6]}
14. Bh4 {[%clk 0:01:12.7]} 14... a6 {[%clk 0:01:57.8]} 15. Ba4 {[%clk
0:01:05.3]} 15... Bc5 {[%clk 0:01:22.3]} 16. Nce2 {[%clk 0:00:40]} 16... Nxd4
{[%clk 0:01:12.3]} 17. Bxd7 {[%clk 0:00:20.5]} 17... Nxe2+ {[%clk 0:01:11.9]}
18. Qxe2 {[%clk 0:00:21.4]} 18... Qxd7 {[%clk 0:01:12]} 19. Bxf6 {[%clk
0:00:22.2]} 19... gxf6 {[%clk 0:01:12.3]} 20. Qh5 {[%clk 0:00:21.4]} 20... Kg7
{[%clk 0:01:10.1]} 21. b4 {[%clk 0:00:18.4]} 21... Bd6 {[%clk 0:00:51.9]} 22.
Red1 {[%clk 0:00:16.3]} 22... Rad8 {[%clk 0:00:50.6]} 23. Rd4 {[%clk 0:00:16.5]}
23... f5 {[%clk 0:00:41.9]} 24. Rad1 {[%clk 0:00:14.7]} 24... Qe6 {[%clk
0:00:39.1]} 25. Qh3 {[%clk 0:00:04.3]} 25... Rfe8 {[%clk 0:00:37]} 26. g3 {[%clk
0:00:01.5]} 26... Be7 {[%clk 0:00:32.8]} 27. Qg2 {[%clk 0:00:01.4]} 27... Bf6
{[%clk 0:00:32.1]} 0-1

[Event "Late-Titled-Tuesday-Blitz-June-18-2024"]
[Site "Chess.com"]
[Date "2024.06.18"]
[Round "8"]
[White "urano56"]
[Black "rdarruda"]
[Result "1/2-1/2"]
[WhiteElo "2417"]
[BlackElo "2565"]
[TimeControl "180+1"]
[EndTime "15:28:30 PDT"]
[Termination "Game drawn by repetition"]

1. d4 {[%clk 0:03:00.9]} 1... Nf6 {[%clk 0:02:50.3]} 2. c4 {[%clk 0:03:00.5]}
2... e5 {[%clk 0:02:49.8]} 3. dxe5 {[%clk 0:02:58.5]} 3... Ne4 {[%clk
0:02:49.9]} 4. Nd2 {[%clk 0:02:55.6]} 4... Nc5 {[%clk 0:02:49.2]} 5. Ngf3 {[%clk
0:02:51.7]} 5... Nc6 {[%clk 0:02:49.2]} 6. e3 {[%clk 0:02:51.1]} 6... Qe7 {[%clk
0:02:48]} 7. Be2 {[%clk 0:02:49.1]} 7... Nxe5 {[%clk 0:02:47.7]} 8. Nxe5 {[%clk
0:02:47.6]} 8... Qxe5 {[%clk 0:02:48.6]} 9. Nf3 {[%clk 0:02:47.4]} 9... Qf6
{[%clk 0:02:45.7]} 10. O-O {[%clk 0:02:41.6]} 10... d6 {[%clk 0:02:45.4]} 11.
Nd4 {[%clk 0:02:35.6]} 11... Be7 {[%clk 0:02:43.7]} 12. b4 {[%clk 0:02:25.7]}
12... Ne6 {[%clk 0:02:41]} 13. Bb2 {[%clk 0:02:20.4]} 13... Nxd4 {[%clk
0:02:35.5]} 14. Bxd4 {[%clk 0:02:18.1]} 14... Qg6 {[%clk 0:02:35.7]} 15. Bh5
{[%clk 0:02:13.7]} 15... Qh6 {[%clk 0:02:35.3]} 16. c5 {[%clk 0:02:06.6]} 16...
O-O {[%clk 0:02:33.3]} 17. Rc1 {[%clk 0:02:00]} 17... Be6 {[%clk 0:02:27.7]} 18.
a3 {[%clk 0:01:58.6]} 18... c6 {[%clk 0:02:12.3]} 19. Bg4 {[%clk 0:01:17.5]}
19... d5 {[%clk 0:02:03.7]} 20. Re1 {[%clk 0:01:11.9]} 20... Bxg4 {[%clk
0:01:58.2]} 21. Qxg4 {[%clk 0:01:11.5]} 21... f5 {[%clk 0:01:58.4]} 22. Qg3
{[%clk 0:01:08.8]} 22... Rf7 {[%clk 0:01:45.3]} 23. a4 {[%clk 0:01:08.3]} 23...
Bg5 {[%clk 0:01:36.7]} 24. Be5 {[%clk 0:00:54.2]} 24... f4 {[%clk 0:01:28.6]}
25. exf4 {[%clk 0:00:52.9]} 25... Bxf4 {[%clk 0:01:29.5]} 26. Bxf4 {[%clk
0:00:52.5]} 26... Qxf4 {[%clk 0:01:30.4]} 27. Rb1 {[%clk 0:00:37.1]} 27... Raf8
{[%clk 0:01:20.9]} 28. Qxf4 {[%clk 0:00:25.3]} 28... Rxf4 {[%clk 0:01:21.8]} 29.
Re7 {[%clk 0:00:24.3]} 29... R8f7 {[%clk 0:01:17.4]} 30. Re8+ {[%clk 0:00:23.9]}
30... Rf8 {[%clk 0:01:17.4]} 31. Re7 {[%clk 0:00:24.3]} 31... R4f7 {[%clk
0:01:16.2]} 32. Rbe1 {[%clk 0:00:12.9]} 32... Rd8 {[%clk 0:01:15.7]} 33. Re8+
{[%clk 0:00:12.2]} 33... Rf8 {[%clk 0:01:09.5]} 34. R8e7 {[%clk 0:00:12.5]}
34... Rf7 {[%clk 0:01:01.5]} 35. Re8+ {[%clk 0:00:13]} 35... Rf8 {[%clk
0:00:36.5]} 36. R8e7 {[%clk 0:00:13]} 36... Rf7 {[%clk 0:00:37]} 1/2-1/2